[Event "*** SCC Grand Prix: Titled Tuesday Blitz"]
[Site "Chess.com"]
[Date "2020.10.06"]
[Round "4"]
[White "creativity"]
[Black "AttackSparrow"]
[Result "0-1"]
[WhiteElo "2066"]
[BlackElo "2389"]
[TimeControl "180+1"]
[EndTime "10:38:41 PDT"]
[Termination "AttackSparrow won by checkmate"]

1. d4 {[%clk 0:02:59.7]} 1... Nf6 {[%clk 0:02:58.9]} 2. c4 {[%clk 0:02:59.4]}
2... g6 {[%clk 0:02:58.1]} 3. Nc3 {[%clk 0:02:58.8]} 3... d5 {[%clk 0:02:58.3]}
4. cxd5 {[%clk 0:02:59.7]} 4... Nxd5 {[%clk 0:02:59.2]} 5. e4 {[%clk 0:02:59.6]}
5... Nxc3 {[%clk 0:02:59.5]} 6. bxc3 {[%clk 0:03:00.5]} 6... Bg7 {[%clk
0:03:00.1]} 7. Bg5 {[%clk 0:03:01.1]} 7... c5 {[%clk 0:03:00]} 8. Rc1 {[%clk
0:03:00.9]} 8... Nc6 {[%clk 0:02:57.3]} 9. d5 {[%clk 0:03:00.8]} 9... Ne5 {[%clk
0:02:56.4]} 10. Nf3 {[%clk 0:02:59.2]} 10... O-O {[%clk 0:02:55.4]} 11. Nxe5
{[%clk 0:02:49.4]} 11... Bxe5 {[%clk 0:02:56.3]} 12. Be2 {[%clk 0:02:48.3]}
12... Qa5 {[%clk 0:02:55.7]} 13. Qd2 {[%clk 0:02:42.8]} 13... Re8 {[%clk
0:02:55]} 14. f4 {[%clk 0:02:37]} 14... Bg7 {[%clk 0:02:54.4]} 15. O-O {[%clk
0:02:32.1]} 15... Bd7 {[%clk 0:02:54.3]} 16. Bh4 {[%clk 0:02:09.5]} 16... b5
{[%clk 0:02:52]} 17. e5 {[%clk 0:02:08.6]} 17... Rad8 {[%clk 0:02:47.9]} 18. Qe1
{[%clk 0:01:58.4]} 18... Bf5 {[%clk 0:02:42.1]} 19. c4 {[%clk 0:01:49.9]} 19...
Qxa2 {[%clk 0:02:27.8]} 20. Ra1 {[%clk 0:01:23.8]} 20... Qb3 {[%clk 0:02:18]}
21. Rxa7 {[%clk 0:01:16.1]} 21... bxc4 {[%clk 0:02:18]} 22. d6 {[%clk
0:01:09.4]} 22... exd6 {[%clk 0:02:12.7]} 23. Bxd8 {[%clk 0:01:08.5]} 23... Rxd8
{[%clk 0:02:12.4]} 24. exd6 {[%clk 0:01:04.2]} 24... Bd4+ {[%clk 0:02:13.3]} 25.
Kh1 {[%clk 0:01:03.9]} 25... Rxd6 {[%clk 0:02:13.7]} 26. Bd1 {[%clk 0:00:57.8]}
26... Qe3 {[%clk 0:02:10.8]} 27. Qa5 {[%clk 0:00:51.7]} 27... Kg7 {[%clk
0:02:06.3]} 28. Qc7 {[%clk 0:00:48.3]} 28... Rf6 {[%clk 0:02:04.6]} 29. Bf3
{[%clk 0:00:41.6]} 29... c3 {[%clk 0:02:03.7]} 30. Bd5 {[%clk 0:00:41.1]} 30...
Be6 {[%clk 0:01:26.9]} 31. Bxe6 {[%clk 0:00:40]} 31... Qxe6 {[%clk 0:01:27.8]}
32. h3 {[%clk 0:00:34]} 32... Qe3 {[%clk 0:01:24.9]} 33. Ra8 {[%clk 0:00:27.4]}
33... c2 {[%clk 0:01:02.7]} 34. Qd8 {[%clk 0:00:16.3]} 34... Kh6 {[%clk
0:00:40.1]} 35. Qf8+ {[%clk 0:00:15]} 35... Kh5 {[%clk 0:00:40.4]} 36. g4+
{[%clk 0:00:14.5]} 36... Kh4 {[%clk 0:00:40.8]} 37. Qh6+ {[%clk 0:00:13.1]}
37... Kg3 {[%clk 0:00:41.2]} 38. Ra3 {[%clk 0:00:06.2]} 38... Qxa3 {[%clk
0:00:39.4]} 39. Rg1+ {[%clk 0:00:03]} 39... Bxg1 {[%clk 0:00:39.5]} 40. Kxg1
{[%clk 0:00:02.6]} 40... Qc1# {[%clk 0:00:38.4]} 0-1

[Event "*** SCC Grand Prix: Titled Tuesday Blitz"]
[Site "Chess.com"]
[Date "2020.10.06"]
[Round "4"]
[White "Khnykin_Nikolay"]
[Black "dominikaf"]
[Result "0-1"]
[WhiteElo "2054"]
[BlackElo "2279"]
[TimeControl "180+1"]
[EndTime "10:38:47 PDT"]
[Termination "dominikaf won by checkmate"]

1. e4 {[%clk 0:02:42.8]} 1... e5 {[%clk 0:02:57.5]} 2. Nf3 {[%clk 0:02:41]} 2...
Nc6 {[%clk 0:02:57]} 3. Bc4 {[%clk 0:02:40]} 3... Nf6 {[%clk 0:02:56.7]} 4. O-O
{[%clk 0:02:35.8]} 4... h6 {[%clk 0:02:55.2]} 5. Nc3 {[%clk 0:02:30.5]} 5... d6
{[%clk 0:02:54.7]} 6. d4 {[%clk 0:02:28.8]} 6... exd4 {[%clk 0:02:53.8]} 7. Nxd4
{[%clk 0:02:29.7]} 7... Be7 {[%clk 0:02:50.9]} 8. Nf5 {[%clk 0:02:26.9]} 8...
Bxf5 {[%clk 0:02:47.1]} 9. exf5 {[%clk 0:02:27.8]} 9... O-O {[%clk 0:02:47.3]}
10. Qf3 {[%clk 0:02:25.1]} 10... Ne5 {[%clk 0:02:46.2]} 11. Qf4 {[%clk
0:02:22.9]} 11... Nxc4 {[%clk 0:02:46.2]} 12. Qxc4 {[%clk 0:02:22.3]} 12... d5
{[%clk 0:02:46.6]} 13. Qf4 {[%clk 0:02:18]} 13... c6 {[%clk 0:02:34.6]} 14. Rd1
{[%clk 0:02:16.1]} 14... Re8 {[%clk 0:02:19.8]} 15. Qg3 {[%clk 0:02:13.4]} 15...
Kh7 {[%clk 0:02:16]} 16. Be3 {[%clk 0:02:08.2]} 16... Bd6 {[%clk 0:02:14.2]} 17.
f4 {[%clk 0:02:03.1]} 17... Qa5 {[%clk 0:01:55.9]} 18. Kh1 {[%clk 0:01:55.3]}
18... Bc5 {[%clk 0:01:41.3]} 19. Bd2 {[%clk 0:01:52.2]} 19... Qc7 {[%clk
0:01:35.2]} 20. Rf1 {[%clk 0:01:49.3]} 20... b5 {[%clk 0:01:28.6]} 21. Rf3
{[%clk 0:01:46.9]} 21... b4 {[%clk 0:01:26.5]} 22. Na4 {[%clk 0:01:46]} 22...
Bd6 {[%clk 0:01:23.5]} 23. Qh4 {[%clk 0:01:44.8]} 23... Ne4 {[%clk 0:01:19.1]}
24. Be3 {[%clk 0:01:37.2]} 24... Be7 {[%clk 0:01:16.7]} 25. Qh3 {[%clk 0:01:34]}
25... Bf6 {[%clk 0:01:11.6]} 26. Rd1 {[%clk 0:01:12.8]} 26... d4 {[%clk
0:00:55.3]} 27. Bc1 {[%clk 0:01:05.7]} 27... Qe7 {[%clk 0:00:48.2]} 28. g4
{[%clk 0:01:03.5]} 28... Kg8 {[%clk 0:00:39.7]} 29. Rg1 {[%clk 0:00:59.2]} 29...
Bh4 {[%clk 0:00:27]} 30. g5 {[%clk 0:00:41.1]} 30... Nf2+ {[%clk 0:00:16.6]} 31.
Rxf2 {[%clk 0:00:39.7]} 31... Bxf2 {[%clk 0:00:16.9]} 32. Rf1 {[%clk 0:00:39.7]}
32... Be3 {[%clk 0:00:16.7]} 33. Re1 {[%clk 0:00:37.3]} 33... hxg5 {[%clk
0:00:14.2]} 34. fxg5 {[%clk 0:00:34.9]} 34... Qe4+ {[%clk 0:00:12.7]} 35. Qg2
{[%clk 0:00:33.4]} 35... Qxf5 {[%clk 0:00:11.3]} 36. Bxe3 {[%clk 0:00:30.2]}
36... dxe3 {[%clk 0:00:12.2]} 37. Qxc6 {[%clk 0:00:27.4]} 37... Rac8 {[%clk
0:00:10.8]} 38. Qg2 {[%clk 0:00:24.6]} 38... Rxc2 {[%clk 0:00:09.8]} 39. Qg1
{[%clk 0:00:24.7]} 39... Qf3+ {[%clk 0:00:09.6]} 40. Qg2 {[%clk 0:00:23.6]}
40... Qxg2# {[%clk 0:00:09.8]} 0-1

[Event "*** SCC Grand Prix: Titled Tuesday Blitz"]
[Site "Chess.com"]
[Date "2020.10.06"]
[Round "4"]
[White "Sankalp_Gupta2003"]
[Black "SamuelGhimpu2003"]
[Result "0-1"]
[WhiteElo "2699"]
[BlackElo "2516"]
[TimeControl "180+1"]
[EndTime "10:38:51 PDT"]
[Termination "SamuelGhimpu2003 won by resignation"]

1. e4 {[%clk 0:03:00.9]} 1... e6 {[%clk 0:02:59.6]} 2. d4 {[%clk 0:03:00.7]}
2... d5 {[%clk 0:03:00.5]} 3. Nc3 {[%clk 0:03:01.1]} 3... Nf6 {[%clk 0:02:59.6]}
4. e5 {[%clk 0:02:56.9]} 4... Nfd7 {[%clk 0:02:58.6]} 5. f4 {[%clk 0:02:57.2]}
5... c5 {[%clk 0:02:59.3]} 6. Nf3 {[%clk 0:02:57.1]} 6... Nc6 {[%clk 0:02:59.7]}
7. Be3 {[%clk 0:02:56.4]} 7... Be7 {[%clk 0:03:00]} 8. Kd2 {[%clk 0:02:53.4]}
8... O-O {[%clk 0:03:00.6]} 9. Ne2 {[%clk 0:02:24.9]} 9... f6 {[%clk 0:02:42.4]}
10. c3 {[%clk 0:02:15.2]} 10... Qa5 {[%clk 0:02:32.7]} 11. Ke1 {[%clk
0:01:45.9]} 11... fxe5 {[%clk 0:02:09.1]} 12. dxe5 {[%clk 0:01:43.5]} 12... Nb6
{[%clk 0:02:06.9]} 13. g3 {[%clk 0:01:37.7]} 13... d4 {[%clk 0:01:59.2]} 14. Bc1
{[%clk 0:01:35]} 14... Nd5 {[%clk 0:01:55.5]} 15. Kf2 {[%clk 0:01:32.1]} 15...
dxc3 {[%clk 0:01:51.6]} 16. Nxc3 {[%clk 0:01:29.7]} 16... Nxc3 {[%clk
0:01:49.9]} 17. bxc3 {[%clk 0:01:30.6]} 17... Qxc3 {[%clk 0:01:50.5]} 18. Bd2
{[%clk 0:01:30]} 18... Qa3 {[%clk 0:01:48]} 19. Bc4 {[%clk 0:01:10.2]} 19... a6
{[%clk 0:01:20.8]} 20. Qe2 {[%clk 0:00:52.5]} 20... b5 {[%clk 0:01:18.4]} 21.
Bd3 {[%clk 0:00:52.6]} 21... c4 {[%clk 0:01:15.9]} 22. Be4 {[%clk 0:00:52]}
22... Bb7 {[%clk 0:01:14.2]} 23. Kg2 {[%clk 0:00:50.5]} 23... Rad8 {[%clk
0:01:11.5]} 24. Rhd1 {[%clk 0:00:47.7]} 24... h6 {[%clk 0:01:03.6]} 25. Be3
{[%clk 0:00:37.1]} 25... Bc5 {[%clk 0:00:56.6]} 26. Bxc5 {[%clk 0:00:31.8]}
26... Qxc5 {[%clk 0:00:57.5]} 27. h4 {[%clk 0:00:27]} 27... Qb6 {[%clk 0:00:39]}
28. Rac1 {[%clk 0:00:25.6]} 28... Nb4 {[%clk 0:00:34.7]} 29. Bb1 {[%clk
0:00:23.4]} 29... Rxd1 {[%clk 0:00:28.6]} 30. Rxd1 {[%clk 0:00:24.3]} 30... Rd8
{[%clk 0:00:28.8]} 31. Rxd8+ {[%clk 0:00:22.2]} 31... Qxd8 {[%clk 0:00:29.7]}
32. Kh2 {[%clk 0:00:17.6]} 32... Qd5 {[%clk 0:00:29.3]} 33. Kg2 {[%clk
0:00:09.2]} 33... Nd3 {[%clk 0:00:29.5]} 34. g4 {[%clk 0:00:07.1]} 34... Qxf3+
{[%clk 0:00:28.7]} 35. Qxf3 {[%clk 0:00:06.9]} 35... Ne1+ {[%clk 0:00:29.6]} 36.
Kg3 {[%clk 0:00:06.6]} 36... Nxf3 {[%clk 0:00:30.2]} 37. f5 {[%clk 0:00:07.2]}
37... Nxe5 {[%clk 0:00:29.7]} 38. Kf4 {[%clk 0:00:07.8]} 38... Nd3+ {[%clk
0:00:28.5]} 39. Ke3 {[%clk 0:00:08.3]} 39... exf5 {[%clk 0:00:28.3]} 40. gxf5
{[%clk 0:00:09.2]} 40... Kf7 {[%clk 0:00:28.6]} 41. Kd4 {[%clk 0:00:10.1]} 41...
Kf6 {[%clk 0:00:27.9]} 0-1

[Event "*** SCC Grand Prix: Titled Tuesday Blitz"]
[Site "Chess.com"]
[Date "2020.10.06"]
[Round "4"]
[White "ORS1984"]
[Black "fighter2jz"]
[Result "1-0"]
[WhiteElo "2497"]
[BlackElo "2669"]
[TimeControl "180+1"]
[EndTime "10:38:51 PDT"]
[Termination "ORS1984 won by resignation"]

1. e4 {[%clk 0:03:00.9]} 1... e6 {[%clk 0:02:59.5]} 2. d4 {[%clk 0:03:00.6]}
2... d5 {[%clk 0:02:58]} 3. Nc3 {[%clk 0:03:01.5]} 3... Bb4 {[%clk 0:02:58]} 4.
Ne2 {[%clk 0:03:01]} 4... dxe4 {[%clk 0:02:49.8]} 5. a3 {[%clk 0:03:00.3]} 5...
Bxc3+ {[%clk 0:02:25.4]} 6. Nxc3 {[%clk 0:03:01.2]} 6... c5 {[%clk 0:02:26]} 7.
dxc5 {[%clk 0:02:21.5]} 7... Qxd1+ {[%clk 0:02:23.9]} 8. Kxd1 {[%clk 0:02:21.2]}
8... Nf6 {[%clk 0:02:23.7]} 9. Nb5 {[%clk 0:02:18.8]} 9... Na6 {[%clk
0:02:14.7]} 10. Nd6+ {[%clk 0:02:15.8]} 10... Ke7 {[%clk 0:02:11.1]} 11. b4
{[%clk 0:02:11.3]} 11... Nc7 {[%clk 0:02:04.7]} 12. Bg5 {[%clk 0:02:08.4]} 12...
Rd8 {[%clk 0:02:02.5]} 13. Kc1 {[%clk 0:02:05.3]} 13... h6 {[%clk 0:01:56.1]}
14. Bxf6+ {[%clk 0:02:01.3]} 14... gxf6 {[%clk 0:01:56.2]} 15. Nxe4 {[%clk
0:02:01.2]} 15... b6 {[%clk 0:01:54.6]} 16. Kb2 {[%clk 0:01:51.8]} 16... Nd5
{[%clk 0:01:45.9]} 17. Bc4 {[%clk 0:01:29.6]} 17... Rb8 {[%clk 0:01:41.6]} 18.
c6 {[%clk 0:01:16.5]} 18... f5 {[%clk 0:01:36.2]} 19. Bxd5 {[%clk 0:01:11.5]}
19... Rxd5 {[%clk 0:01:34.8]} 20. Nc3 {[%clk 0:01:11]} 20... Re5 {[%clk
0:01:29.9]} 21. b5 {[%clk 0:01:08.8]} 21... Rc5 {[%clk 0:01:23.1]} 22. Rhd1
{[%clk 0:01:03.8]} 22... e5 {[%clk 0:01:21.8]} 23. a4 {[%clk 0:00:56.7]} 23...
Be6 {[%clk 0:01:20.9]} 24. Rd2 {[%clk 0:00:43]} 24... a6 {[%clk 0:01:17.2]} 25.
Rad1 {[%clk 0:00:40.6]} 25... axb5 {[%clk 0:01:16.4]} 26. axb5 {[%clk
0:00:40.3]} 26... Ra8 {[%clk 0:01:17]} 27. Rd7+ {[%clk 0:00:31.5]} 27... Kf6
{[%clk 0:01:04.5]} 28. Rb7 {[%clk 0:00:15.3]} 28... Rc4 {[%clk 0:01:04.6]} 29.
Nd5+ {[%clk 0:00:13.9]} 29... Kg7 {[%clk 0:00:46.1]} 30. Nxb6 {[%clk 0:00:13.5]}
30... Rb4+ {[%clk 0:00:43.4]} 31. Kc3 {[%clk 0:00:13.6]} 31... Rd4 {[%clk
0:00:39.7]} 32. Nxa8 {[%clk 0:00:13.3]} 32... Rxd1 {[%clk 0:00:38.9]} 33. c7
{[%clk 0:00:13.5]} 33... Rd4 {[%clk 0:00:36.6]} 34. Nb6 {[%clk 0:00:13]} 34...
Rf4 {[%clk 0:00:33]} 35. c8=Q {[%clk 0:00:13]} 35... Bxc8 {[%clk 0:00:32.9]} 36.
Nxc8 {[%clk 0:00:13.9]} 36... Rxf2 {[%clk 0:00:33.8]} 37. Nd6 {[%clk 0:00:13.9]}
37... e4 {[%clk 0:00:34]} 38. Rxf7+ {[%clk 0:00:13.6]} 38... Kg6 {[%clk
0:00:34.5]} 39. b6 {[%clk 0:00:13.5]} 39... Rf1 {[%clk 0:00:33.6]} 40. b7 {[%clk
0:00:13]} 40... Rb1 {[%clk 0:00:34.5]} 41. Rf8 {[%clk 0:00:13]} 41... e3 {[%clk
0:00:35.4]} 42. b8=Q {[%clk 0:00:13.1]} 1-0

[Event "*** SCC Grand Prix: Titled Tuesday Blitz"]
[Site "Chess.com"]
[Date "2020.10.06"]
[Round "4"]
[White "ChessicallyInclined"]
[Black "Bulldog167"]
[Result "0-1"]
[WhiteElo "2533"]
[BlackElo "2783"]
[TimeControl "180+1"]
[EndTime "10:38:52 PDT"]
[Termination "Bulldog167 won by resignation"]

1. d4 {[%clk 0:03:00.9]} 1... Nf6 {[%clk 0:03:00.3]} 2. c4 {[%clk 0:02:53.2]}
2... c5 {[%clk 0:02:59.8]} 3. d5 {[%clk 0:02:52.4]} 3... e6 {[%clk 0:03:00]} 4.
Nc3 {[%clk 0:02:52]} 4... exd5 {[%clk 0:03:00.6]} 5. cxd5 {[%clk 0:02:52.9]}
5... d6 {[%clk 0:03:01.2]} 6. e4 {[%clk 0:02:53.4]} 6... g6 {[%clk 0:03:01.8]}
7. Nge2 {[%clk 0:02:53.9]} 7... h5 {[%clk 0:03:01.5]} 8. Bg5 {[%clk 0:02:37.7]}
8... Bg7 {[%clk 0:03:01.6]} 9. Qd2 {[%clk 0:02:35.5]} 9... O-O {[%clk 0:03:01]}
10. Ng3 {[%clk 0:02:34.7]} 10... Qe8 {[%clk 0:02:56.1]} 11. Be2 {[%clk
0:02:30.5]} 11... a6 {[%clk 0:02:53.7]} 12. a4 {[%clk 0:02:30.2]} 12... Nh7
{[%clk 0:02:52.9]} 13. Bh4 {[%clk 0:02:11.9]} 13... Nd7 {[%clk 0:02:35.7]} 14.
O-O {[%clk 0:02:09.5]} 14... Ne5 {[%clk 0:02:29.1]} 15. h3 {[%clk 0:02:04.6]}
15... f5 {[%clk 0:01:59.7]} 16. f4 {[%clk 0:01:50.2]} 16... g5 {[%clk
0:01:54.1]} 17. Bxh5 {[%clk 0:01:35.9]} 17... Ng6 {[%clk 0:01:42.6]} 18. exf5
{[%clk 0:01:19.1]} 18... gxh4 {[%clk 0:01:41.4]} 19. Bxg6 {[%clk 0:01:15.1]}
19... Qd8 {[%clk 0:01:36.1]} 20. Nge4 {[%clk 0:01:02.1]} 20... Bxf5 {[%clk
0:01:31.6]} 21. Bxf5 {[%clk 0:01:02.1]} 21... Rxf5 {[%clk 0:01:32.5]} 22. Rae1
{[%clk 0:00:56.3]} 22... Qf8 {[%clk 0:01:32.1]} 23. Rf3 {[%clk 0:00:36.4]} 23...
Bd4+ {[%clk 0:01:29]} 24. Kh1 {[%clk 0:00:35.9]} 24... Re8 {[%clk 0:01:27.5]}
25. Qd3 {[%clk 0:00:17.3]} 25... Kh8 {[%clk 0:01:13.4]} 26. Ref1 {[%clk
0:00:17.4]} 26... Rf7 {[%clk 0:00:49.3]} 27. Ne2 {[%clk 0:00:11.6]} 27... Bxb2
{[%clk 0:00:38.4]} 28. f5 {[%clk 0:00:10.6]} 28... Qe7 {[%clk 0:00:29.6]} 29.
N4c3 {[%clk 0:00:06.8]} 29... Qf6 {[%clk 0:00:24.8]} 30. Ne4 {[%clk 0:00:05.4]}
30... Qe5 {[%clk 0:00:23]} 31. N4c3 {[%clk 0:00:05.9]} 31... Ng5 {[%clk
0:00:22.7]} 32. Nf4 {[%clk 0:00:04.3]} 32... Qxc3 {[%clk 0:00:17.6]} 33. Ng6+
{[%clk 0:00:03.6]} 33... Kg7 {[%clk 0:00:17.6]} 34. Qxc3+ {[%clk 0:00:04.1]}
34... Bxc3 {[%clk 0:00:18.4]} 35. Rxc3 {[%clk 0:00:04.4]} 35... Ne4 {[%clk
0:00:18.9]} 36. Rb3 {[%clk 0:00:04.3]} 36... Ng3+ {[%clk 0:00:18.6]} 37. Rxg3
{[%clk 0:00:04.6]} 37... hxg3 {[%clk 0:00:19.5]} 38. Nf4 {[%clk 0:00:03.2]}
38... Rxf5 {[%clk 0:00:18.2]} 39. Ne6+ {[%clk 0:00:03.4]} 39... Rxe6 {[%clk
0:00:18.7]} 0-1

[Event "*** SCC Grand Prix: Titled Tuesday Blitz"]
[Site "Chess.com"]
[Date "2020.10.06"]
[Round "4"]
[White "Joshukid"]
[Black "Rakesh"]
[Result "1-0"]
[WhiteElo "2707"]
[BlackElo "2490"]
[TimeControl "180+1"]
[EndTime "10:38:52 PDT"]
[Termination "Joshukid won on time"]

1. Nf3 {[%clk 0:03:00.6]} 1... Nf6 {[%clk 0:02:58.8]} 2. c4 {[%clk 0:03:01.2]}
2... d6 {[%clk 0:02:57.9]} 3. d4 {[%clk 0:03:01.4]} 3... g6 {[%clk 0:02:56.9]}
4. Nc3 {[%clk 0:03:01.9]} 4... Bg7 {[%clk 0:02:57.3]} 5. g3 {[%clk 0:03:01.7]}
5... O-O {[%clk 0:02:58]} 6. Bg2 {[%clk 0:03:02.6]} 6... Nbd7 {[%clk 0:02:57.3]}
7. O-O {[%clk 0:03:02.8]} 7... c6 {[%clk 0:02:57.3]} 8. e4 {[%clk 0:03:03]} 8...
Qc7 {[%clk 0:02:57.6]} 9. h3 {[%clk 0:02:59.8]} 9... e5 {[%clk 0:02:58]} 10. Be3
{[%clk 0:03:00]} 10... Re8 {[%clk 0:02:57.6]} 11. Rc1 {[%clk 0:03:00.9]} 11...
exd4 {[%clk 0:02:52.7]} 12. Nxd4 {[%clk 0:03:01.8]} 12... Nc5 {[%clk 0:02:52.9]}
13. Qc2 {[%clk 0:03:00.9]} 13... Bd7 {[%clk 0:02:50]} 14. b4 {[%clk 0:02:56.3]}
14... Ne6 {[%clk 0:02:41.5]} 15. Nb3 {[%clk 0:02:56.7]} 15... Rad8 {[%clk
0:02:21.6]} 16. Rfd1 {[%clk 0:02:56.2]} 16... h5 {[%clk 0:02:16.3]} 17. a4
{[%clk 0:02:54.7]} 17... h4 {[%clk 0:02:16.4]} 18. g4 {[%clk 0:02:54.9]} 18...
Bc8 {[%clk 0:02:11.8]} 19. a5 {[%clk 0:02:54.7]} 19... b6 {[%clk 0:02:11.5]} 20.
axb6 {[%clk 0:02:52.2]} 20... axb6 {[%clk 0:02:12.4]} 21. b5 {[%clk 0:02:52.8]}
21... c5 {[%clk 0:02:10.5]} 22. f4 {[%clk 0:02:50.1]} 22... Bb7 {[%clk
0:02:02.9]} 23. Qf2 {[%clk 0:02:44.8]} 23... Ra8 {[%clk 0:01:43.5]} 24. Qxh4
{[%clk 0:02:41.4]} 24... Ra3 {[%clk 0:01:41.9]} 25. Rb1 {[%clk 0:02:41.4]} 25...
Nxg4 {[%clk 0:01:23.4]} 26. Qxg4 {[%clk 0:02:33.1]} 26... Bxc3 {[%clk
0:01:23.2]} 27. f5 {[%clk 0:02:33.9]} 27... Nf8 {[%clk 0:01:22.5]} 28. h4 {[%clk
0:02:21.7]} 28... Bg7 {[%clk 0:01:12.7]} 29. Bf4 {[%clk 0:02:10.1]} 29... Bxe4
{[%clk 0:01:03.1]} 30. Bxd6 {[%clk 0:01:44.7]} 30... Qb7 {[%clk 0:00:59]} 31.
Bxf8 {[%clk 0:01:41.9]} 31... Bxg2 {[%clk 0:00:36.9]} 32. Bxg7 {[%clk
0:01:19.3]} 32... Bf3 {[%clk 0:00:31]} 33. Qg5 {[%clk 0:01:19.2]} 33... Kxg7
{[%clk 0:00:28.2]} 34. fxg6 {[%clk 0:00:54.5]} 34... f6 {[%clk 0:00:23.6]} 35.
Qf5 {[%clk 0:00:43.2]} 35... Re7 {[%clk 0:00:14.1]} 36. Rd6 {[%clk 0:00:36.8]}
36... Qe4 {[%clk 0:00:04.7]} 37. Qxf6+ {[%clk 0:00:36.9]} 37... Kh6 {[%clk
0:00:03.7]} 38. Qh8+ {[%clk 0:00:31.9]} 1-0

[Event "*** SCC Grand Prix: Titled Tuesday Blitz"]
[Site "Chess.com"]
[Date "2020.10.06"]
[Round "4"]
[White "JuliaEfremova"]
[Black "Klavdia_Nik"]
[Result "1-0"]
[WhiteElo "2329"]
[BlackElo "2155"]
[TimeControl "180+1"]
[EndTime "10:38:53 PDT"]
[Termination "JuliaEfremova won on time"]

1. e4 {[%clk 0:03:00.9]} 1... e6 {[%clk 0:02:58.8]} 2. d4 {[%clk 0:03:00.2]}
2... d5 {[%clk 0:02:59.1]} 3. Nc3 {[%clk 0:02:56.9]} 3... dxe4 {[%clk
0:02:59.1]} 4. Nxe4 {[%clk 0:02:56.5]} 4... Bd7 {[%clk 0:02:59.1]} 5. Nf3 {[%clk
0:02:54]} 5... Bc6 {[%clk 0:02:57.9]} 6. Bd3 {[%clk 0:02:52.6]} 6... Nd7 {[%clk
0:02:55.7]} 7. O-O {[%clk 0:02:51.7]} 7... Ngf6 {[%clk 0:02:55.8]} 8. Nxf6+
{[%clk 0:02:50.7]} 8... Nxf6 {[%clk 0:02:55.2]} 9. c3 {[%clk 0:02:50.8]} 9...
Bxf3 {[%clk 0:02:51]} 10. Qxf3 {[%clk 0:02:49.6]} 10... c6 {[%clk 0:02:51.7]}
11. Bg5 {[%clk 0:02:42.7]} 11... Be7 {[%clk 0:02:51.6]} 12. Rfe1 {[%clk
0:02:42]} 12... O-O {[%clk 0:02:38.8]} 13. Qh3 {[%clk 0:02:40.8]} 13... g6
{[%clk 0:02:34.9]} 14. Bh6 {[%clk 0:02:31.9]} 14... Re8 {[%clk 0:02:34.6]} 15.
Re2 {[%clk 0:02:04.2]} 15... Nd5 {[%clk 0:02:27.9]} 16. Rae1 {[%clk 0:02:02.1]}
16... Bf6 {[%clk 0:02:27.5]} 17. Qg4 {[%clk 0:01:49.1]} 17... Bg7 {[%clk
0:02:24]} 18. Bg5 {[%clk 0:01:48.3]} 18... Qc7 {[%clk 0:02:19.7]} 19. h4 {[%clk
0:01:46.4]} 19... c5 {[%clk 0:02:12.9]} 20. h5 {[%clk 0:01:44.8]} 20... cxd4
{[%clk 0:02:11.7]} 21. hxg6 {[%clk 0:01:44.8]} 21... hxg6 {[%clk 0:02:09.5]} 22.
cxd4 {[%clk 0:01:39.2]} 22... Nf6 {[%clk 0:02:00.6]} 23. Qh4 {[%clk 0:01:36.1]}
23... Nh7 {[%clk 0:01:59.7]} 24. Bh6 {[%clk 0:01:28.2]} 24... Bxh6 {[%clk
0:01:54.1]} 25. Qxh6 {[%clk 0:01:29.1]} 25... Rad8 {[%clk 0:01:51.8]} 26. Re3
{[%clk 0:01:26.2]} 26... f5 {[%clk 0:00:50.4]} 27. Rxe6 {[%clk 0:01:17.6]} 27...
Rxe6 {[%clk 0:00:45.4]} 28. Rxe6 {[%clk 0:01:17.7]} 28... Nf8 {[%clk 0:00:45.2]}
29. Re3 {[%clk 0:00:57.4]} 29... Rxd4 {[%clk 0:00:35.7]} 30. Re8 {[%clk
0:00:44.9]} 30... Qg7 {[%clk 0:00:33.4]} 31. Qe3 {[%clk 0:00:36.2]} 31... Qd7
{[%clk 0:00:25.2]} 32. Bc2 {[%clk 0:00:32]} 32... Re4 {[%clk 0:00:04.9]} 33.
Bxe4 {[%clk 0:00:29.1]} 33... fxe4 {[%clk 0:00:05.8]} 34. Qxe4 {[%clk
0:00:24.1]} 34... Qd1+ {[%clk 0:00:02.3]} 35. Qe1 {[%clk 0:00:24.3]} 35... Qd6
{[%clk 0:00:02.9]} 36. g3 {[%clk 0:00:22.1]} 1-0

[Event "*** SCC Grand Prix: Titled Tuesday Blitz"]
[Site "Chess.com"]
[Date "2020.10.06"]
[Round "4"]
[White "Mazetovic"]
[Black "kasparicy"]
[Result "1-0"]
[WhiteElo "2621"]
[BlackElo "2391"]
[TimeControl "180+1"]
[EndTime "10:38:54 PDT"]
[Termination "Mazetovic won by checkmate"]

1. e4 {[%clk 0:03:00.9]} 1... c5 {[%clk 0:02:58.5]} 2. Nf3 {[%clk 0:03:00.4]}
2... d6 {[%clk 0:02:58.3]} 3. Bb5+ {[%clk 0:02:59.7]} 3... Nd7 {[%clk
0:02:57.4]} 4. c3 {[%clk 0:02:56.8]} 4... Nf6 {[%clk 0:02:55.9]} 5. Qe2 {[%clk
0:02:57.1]} 5... h6 {[%clk 0:02:52.7]} 6. d4 {[%clk 0:02:54.8]} 6... a6 {[%clk
0:02:46.1]} 7. Ba4 {[%clk 0:02:53.7]} 7... b5 {[%clk 0:02:43.2]} 8. Bc2 {[%clk
0:02:52.9]} 8... cxd4 {[%clk 0:02:43]} 9. cxd4 {[%clk 0:02:52.5]} 9... Bb7
{[%clk 0:02:43.3]} 10. O-O {[%clk 0:02:50.5]} 10... e6 {[%clk 0:02:40.1]} 11.
Nc3 {[%clk 0:02:49.3]} 11... Rc8 {[%clk 0:02:39.7]} 12. a3 {[%clk 0:02:44.8]}
12... Be7 {[%clk 0:02:38.2]} 13. Re1 {[%clk 0:02:29.9]} 13... Nb6 {[%clk
0:02:27.9]} 14. h3 {[%clk 0:01:55.1]} 14... Nc4 {[%clk 0:02:05.6]} 15. e5 {[%clk
0:01:47.8]} 15... Nd5 {[%clk 0:02:00.5]} 16. Ne4 {[%clk 0:01:43.2]} 16... dxe5
{[%clk 0:01:59.1]} 17. dxe5 {[%clk 0:01:42.3]} 17... Qc7 {[%clk 0:01:53.8]} 18.
Ng3 {[%clk 0:01:23.8]} 18... Nxe5 {[%clk 0:01:30.6]} 19. Nxe5 {[%clk 0:01:18.7]}
19... Qxc2 {[%clk 0:01:29.9]} 20. Qg4 {[%clk 0:01:15.7]} 20... Bf6 {[%clk
0:00:34.1]} 21. Nh5 {[%clk 0:01:12.1]} 21... O-O {[%clk 0:00:15.4]} 22. Bxh6
{[%clk 0:00:57]} 22... Qh7 {[%clk 0:00:14.7]} 23. Bf4 {[%clk 0:00:21.4]} 23...
g6 {[%clk 0:00:11.3]} 24. Nxf6+ {[%clk 0:00:19.7]} 24... Nxf6 {[%clk 0:00:12.2]}
25. Qg5 {[%clk 0:00:19]} 25... Nh5 {[%clk 0:00:11.1]} 26. Nd7 {[%clk 0:00:16.2]}
26... Rfd8 {[%clk 0:00:08.3]} 27. Nf6+ {[%clk 0:00:15.7]} 27... Nxf6 {[%clk
0:00:07.9]} 28. Qxf6 {[%clk 0:00:16.1]} 28... Qg7 {[%clk 0:00:08.6]} 29. Qh4
{[%clk 0:00:10.3]} 29... Rd4 {[%clk 0:00:07.6]} 30. Qg3 {[%clk 0:00:09.6]} 30...
Qf8 {[%clk 0:00:04.4]} 31. Be5 {[%clk 0:00:09.7]} 31... Rd5 {[%clk 0:00:04.4]}
32. Qh4 {[%clk 0:00:09.1]} 32... Rcc5 {[%clk 0:00:02.3]} 33. Qh8# {[%clk
0:00:08.5]} 1-0